bitfinex/quotes_ETHUSD_20250130
["timestamp","ask_amount","ask_price","bid_price","bid_amount"]
[1738248880204,0.7672,3277.5,3276.8,3.65583363]
[1738248880426,0.7672,3277.5,3276.8,0.60413363]
[1738248880751,0.7672,3277.5,3277.0,3.0515]
[1738248881253,0.7672,3277.5,3277.2,3.05132]
[1738248881544,0.7672,3277.5,3276.8,3.65585363]
[1738248881754,0.0075,3277.4,3276.8,0.60413363]
[1738248882815,0.7672,3277.5,3276.8,3.65586363]
[1738248883018,0.7672,3277.5,3277.2,3.05131]
[1738248883954,0.7672,3277.5,3276.8,0.60413363]
[1738248884388,0.0075,3277.4,3276.4,3.05208]
[1738248884554,0.0075,3277.4,3276.5,3.052]
[1738248884754,0.0075,3277.4,3276.4,3.05208]
[1738248884755,0.0075,3277.4,3276.6,3.67657267]
[1738248884987,0.015,3277.4,3276.6,0.62469267]
[1738248885189,0.0075,3277.4,3276.6,0.62469267]
[1738248885507,0.0075,3277.2,3276.6,0.62469267]
[1738248886504,0.7953,3277.3,3276.8,3.05169]
[1738248886709,0.7953,3277.3,3276.6,1.45489267]
[1738248886887,3.04974,3279.0,3276.6,1.45489267]
[1738248886888,0.8065,3277.7,3277.3,3.05128]
[1738248887092,0.8065,3277.7,3277.2,3.05138]
[1738248887677,0.8065,3277.7,3276.6,1.45489267]
[1738248888034,0.7538,3278.2,3277.7,3.05089]
[1738248888321,0.7538,3278.2,3278.0,3.05057]
[1738248888515,0.7538,3278.2,3278.1,3.05054]
[1738248888810,0.8155,3279.0,3278.0,3.05055]
[1738248889315,0.8155,3279.0,3278.3,3.05035]
[1738248891106,3.04973,3279.0,3277.4,3.05117]
[1738248891309,0.0075,3278.6,3277.5,0.61769248]
[1738248891509,0.015,3278.4,3277.5,0.61769248]
[1738248891707,0.0075,3278.2,3277.5,0.61769248]
[1738248892361,0.0075,3278.2,3277.6,3.051]
[1738248892560,0.8232,3278.3,3277.5,0.61769248]
[1738248892561,0.8232,3278.3,3277.5,1.44929248]
[1738248892813,0.8232,3278.3,3277.9,3.05071]
[1738248893163,0.8232,3278.3,3277.5,0.61769248]
[1738248893365,0.8232,3278.3,3277.7,3.05084]
[1738248893778,0.8232,3278.3,3277.5,0.61769248]
[1738248893975,0.0075,3278.2,3276.9,7.01803677]
[1738248894216,0.015,3278.0,3277.0,3.05155]
[1738248894510,0.015,3278.0,3276.9,7.01803677]
[1738248894511,0.015,3278.0,3277.3,0.62459168]
[1738248895115,0.0075,3277.8,3276.7,3.05183]
[1738248895417,0.8122,3277.9,3276.6,6.10376]
[1738248895418,0.0075,3277.4,3276.6,6.10376]
[1738248895637,0.0075,3277.4,3276.6,3.05188]
[1738248895814,0.0075,3277.4,3276.0,3.05244]
[1738248895815,0.0075,3277.4,3276.7,3.05184]
[1738248895984,3.05038,3278.3,3276.8,0.61323547]
[1738248895985,0.8134,3277.3,3276.8,0.61323547]
[1738248896189,0.0075,3277.2,3276.8,0.61323547]
[1738248896386,0.8134,3277.3,3276.8,3.05173]
[1738248896689,0.8134,3277.3,3276.8,3.05174]
[1738248896888,0.8134,3277.3,3276.8,3.05169]
[1738248897083,0.7761,3277.7,3276.8,3.05168]
[1738248897420,0.7761,3279.2,3278.2,3.05044]
[1738248897778,0.7761,3279.2,3278.3,3.0503]
[1738248897984,0.7761,3279.2,3278.4,3.05025]
[1738248897985,0.0075,3279.1,3278.4,3.05025]
[1738248898193,0.7761,3279.2,3278.8,3.04981]
[1738248898442,0.7761,3279.2,3278.6,3.05005]
[1738248898747,0.0075,3279.1,3278.7,3.04996]
[1738248899097,0.0075,3279.1,3278.0,3.87883]
[1738248899098,0.0075,3279.1,3278.5,3.05013]
[1738248899494,0.7761,3279.2,3278.5,3.05013]
[1738248899803,0.0075,3279.1,3278.3,3.05027]
[1738248900239,0.7761,3279.2,3278.0,0.61266566]
[1738248900723,0.7761,3279.2,3278.9,3.04975]
[1738248901037,0.7761,3279.2,3279.0,3.0497]
[1738248901611,0.7761,3279.2,3278.8,3.04984]
[1738248901814,0.8191,3279.7,3279.1,3.96642677]
[1738248902011,0.259,3281.2,3279.6,3.04915]
[1738248902228,0.8009,3281.0,3279.6,3.04915]
[1738248902448,0.8009,3281.0,3279.8,3.04896]
[1738248902602,0.015,3280.7,3279.8,3.04896]
[1738248903329,0.015,3280.7,3279.3,3.4292282]
[1738248903330,0.0075,3280.5,3279.5,3.65227961]
[1738248903649,0.0075,3280.5,3279.7,3.04896]
[1738248903944,0.7833,3280.6,3279.5,0.60303961]
[1738248904095,0.7833,3280.6,3280.2,3.04859]
[1738248904297,0.7833,3280.6,3280.0,3.04877]
[1738248904615,0.0075,3280.5,3279.8,3.04895]
[1738248905231,0.015,3280.5,3279.6,3.04913]
[1738248905547,0.2655,3281.0,3279.6,3.04913]
[1738248905548,0.0075,3280.3,3279.6,3.04913]
[1738248905695,0.0075,3280.3,3279.3,3.04938]
[1738248905696,0.0075,3280.1,3279.3,3.04938]
[1738248906209,0.0075,3279.9,3279.1,3.04959]
[1738248906628,0.0075,3279.9,3279.2,3.04944]
[1738248906876,0.0075,3279.9,3279.3,3.04939]
[1738248907199,0.7991,3280.2,3279.2,3.04947]
[1738248907399,0.7974,3280.0,3278.9,0.59962088]
[1738248907594,0.7974,3280.0,3279.0,3.04968]
[1738248907595,0.015,3279.9,3279.0,3.04968]
[1738248907852,0.015,3279.9,3278.9,3.64941088]
[1738248907853,0.0075,3279.7,3278.9,3.64941088]
[1738248908234,0.0075,3279.7,3279.0,3.0497]
[1738248908551,0.804,3279.8,3278.9,3.64940088]
[1738248909245,0.804,3279.8,3279.1,3.04959]
[1738248909433,0.804,3279.8,3279.4,3.04933]
[1738248910141,0.804,3279.8,3279.2,3.0495]
[1738248910446,0.804,3279.8,3279.3,3.04941]
[1738248910682,0.804,3279.8,3279.5,3.04915]
[1738248911451,0.804,3279.8,3279.3,3.04941]
[1738248911652,0.804,3279.8,3278.9,3.0498]
[1738248911883,0.804,3279.8,3279.5,3.04923]
[1738248912384,0.61738606,3281.1,3279.2,0.61136036]
[1738248912385,0.7834,3280.1,3279.2,0.61136036]
[1738248912548,2.0,3281.5,3280.5,3.0483]
[1738248912549,0.7834,3281.5,3280.5,3.0483]
[1738248912749,0.7834,3281.5,3280.4,3.04837]
[1738248913076,0.7716,3281.4,3280.4,3.04838]
[1738248913267,0.7716,3281.4,3279.6,3.0]
[1738248913484,0.015,3281.3,3280.1,0.59634342]
[1738248913681,0.7716,3281.4,3280.2,0.7581]
[1738248913840,0.7716,3281.4,3280.3,3.0485]
[1738248914186,0.7716,3281.4,3280.2,0.7581]
[1738248914187,0.7716,3281.4,3280.9,3.04792]
[1738248914389,0.7716,3281.4,3281.1,3.04774]
[1738248914905,0.01299091,3281.6,3281.5,3.04738]
[1738248915410,0.01299091,3281.6,3281.1,0.61520616]
[1738248915713,0.01299091,3281.6,3281.5,3.04738]
[1738248915916,0.01299091,3281.6,3281.3,3.04753]
[1738248916219,0.01299091,3281.6,3281.5,3.04738]
[1738248918222,0.01299091,3281.6,3281.3,3.04753]
[1738248918434,0.01299091,3281.6,3281.1,0.61520616]
[1738248918636,0.01299091,3281.6,3281.4,3.04738]
[1738248918814,0.01299091,3281.6,3281.3,3.04755]
[1738248919018,0.01299091,3281.6,3281.3,3.04749]
[1738248919188,0.01299091,3281.6,3281.4,3.04743]
[1738248919389,0.01299091,3281.6,3281.5,3.04738]
[1738248919787,0.01299091,3281.6,3281.3,3.04757]
[1738248920141,0.01299091,3281.6,3280.9,0.60943179]
[1738248920486,0.01299091,3281.6,3281.4,3.04746]
[1738248921230,0.01299091,3281.6,3281.5,3.04738]
[1738248924317,0.34595347,3282.7,3281.5,7.03895857]
[1738248924487,0.34595347,3282.7,3282.5,3.04644]
[1738248924829,0.34595347,3282.7,3282.4,3.04652]
[1738248925389,0.34595347,3282.7,3282.2,3.04672]
[1738248925699,0.34595347,3282.7,3282.3,3.04663]
[1738248925894,0.0075,3282.9,3282.2,3.04672]
[1738248926430,0.0075,3282.9,3281.5,3.96110917]
[1738248926431,0.7715,3282.3,3281.5,3.04738]
[1738248926637,0.0075,3282.0,3280.7,3.04811]
[1738248926935,0.7715,3281.8,3280.9,3.42686983]
[1738248927519,0.7787,3281.7,3280.5,3.73379459]
[1738248927891,0.0075,3281.5,3280.5,0.68551459]
[1738248928101,0.7862,3281.3,3280.5,0.68551459]
[1738248928431,0.0075,3280.9,3280.5,0.68551459]
[1738248928641,0.0075,3280.7,3279.3,3.42686983]
[1738248928800,0.7929,3280.6,3279.4,3.04925]
[1738248929124,3.0,3281.1,3279.4,3.04925]
[1738248929125,0.7929,3281.8,3280.7,3.04806]
[1738248929285,0.015,3281.5,3280.7,3.04806]
[1738248929522,0.015,3281.5,3280.5,3.04828]
[1738248929728,0.0075,3281.3,3280.5,3.04828]
[1738248929928,0.0075,3281.3,3280.7,3.04806]
[1738248930269,3.0,3282.1,3281.3,3.04757]
[1738248930270,0.8078,3282.0,3281.3,3.04757]
[1738248930470,0.8078,3282.0,3281.0,3.42686983]
[1738248930767,0.8078,3282.0,3281.5,3.04729]
[1738248931267,0.8078,3282.0,3281.0,3.42686983]
[1738248931471,0.8078,3282.0,3281.4,3.04739]
[1738248931782,0.7791,3282.5,3282.3,3.04663]
[1738248932084,0.7791,3282.5,3282.0,3.04692]
[1738248932959,0.0075,3282.4,3281.9,0.60847286]
[1738248933350,0.0075,3282.4,3281.5,3.04737]
[1738248933351,0.015,3282.4,3281.5,3.04737]
[1738248933686,0.7779,3282.3,3281.3,3.04756]
[1738248933884,0.7779,3282.3,3280.4,3.0]
[1738248933885,0.015,3282.2,3280.5,3.95632151]
[1738248934067,0.55,3282.9,3280.5,3.95632151]
[1738248934068,0.015,3282.0,3281.2,3.04764]
[1738248934458,1.0324,3282.1,3280.8,0.61768383]
[1738248934767,0.7794,3282.1,3281.6,3.04723]
[1738248935355,0.015,3282.0,3280.8,0.61768383]
[1738248935538,0.015,3282.0,3281.2,3.04764]
[1738248935755,0.015,3281.8,3280.9,3.04788]
[1738248936179,0.015,3281.8,3280.8,3.04803]
[1738248936355,0.0075,3281.4,3280.6,3.04815]
[1738248936542,0.015,3281.4,3280.5,3.04824]
[1738248936747,0.015,3281.4,3280.1,0.7673]
[1738248936748,0.015,3281.4,3280.7,3.04812]
[1738248937139,0.015,3281.4,3280.6,3.04818]
[1738248937346,0.015,3281.4,3280.5,3.0483]
[1738248937545,0.015,3281.4,3280.6,3.04818]
[1738248937859,0.015,3281.4,3280.4,3.04832]
[1738248937860,0.7509,3281.4,3280.4,3.04832]
[1738248938064,0.0075,3281.3,3280.1,0.60786286]
[1738248938277,0.7509,3281.4,3280.3,3.0485]
[1738248938593,0.7509,3281.4,3281.1,3.04769]
[1738248938774,0.7509,3281.4,3280.6,3.65929685]
[1738248938951,0.7509,3281.4,3280.6,0.61115685]
[1738248939145,0.7509,3281.4,3281.1,3.04775]
[1738248939546,0.7509,3281.4,3281.0,3.04779]
[1738248939745,0.7509,3281.4,3280.9,3.04794]
[1738248939948,0.7509,3281.4,3280.5,3.0483]
[1738248940191,0.7509,3281.4,3280.0,3.04873]
[1738248940398,0.7509,3281.4,3280.8,3.04796]
[1738248941109,0.015,3281.3,3280.1,3.95632151]
[1738248941259,0.015,3281.1,3280.2,3.04859]
[1738248941462,0.015,3281.1,3280.0,3.04876]
[1738248941698,0.0075,3280.9,3280.4,3.04832]
[1738248942201,0.8185,3281.0,3280.4,3.0484]
[1738248942404,0.0075,3280.9,3280.3,0.62160644]
[1738248942706,0.015,3280.5,3279.5,3.04924]
[1738248942862,0.015,3280.3,3279.5,3.04924]
[1738248943066,0.7858,3280.4,3279.4,3.04933]
[1738248943263,0.7858,3280.4,3279.9,3.0488]
[1738248943602,0.7858,3280.4,3280.3,3.0485]
[1738248943766,0.7858,3280.4,3280.1,3.0486]
[1738248944164,0.7858,3280.4,3279.9,3.04886]
[1738248944557,0.7858,3280.4,3280.0,3.04877]
[1738248944959,0.7858,3280.4,3280.1,3.04862]
[1738248945271,0.7971,3281.0,3279.7,3.66460669]
[1738248945474,0.0075,3280.9,3280.2,3.04857]
[1738248945678,0.015,3280.9,3280.0,3.04874]
[1738248945901,0.015,3280.9,3280.1,3.04867]
[1738248946102,0.015,3280.9,3280.4,3.04833]
[1738248946103,0.0075,3280.9,3280.4,3.04833]
[1738248946262,0.0075,3280.9,3280.5,3.0483]
[1738248946464,0.7971,3281.0,3280.4,3.04834]
[1738248946660,1.0491,3281.0,3280.4,3.04834]
[1738248946911,0.015,3280.9,3280.0,3.04874]
[1738248947091,0.015,3280.9,3279.8,3.04894]
[1738248947281,0.015,3280.7,3279.8,3.04894]
[1738248947600,0.015,3280.7,3279.9,3.04886]
[1738248948178,0.7641,3280.8,3279.8,3.04896]
[1738248948385,0.7641,3280.8,3280.0,3.04871]
[1738248948612,0.015,3280.7,3279.8,3.04896]
[1738248948915,3.0473,3281.6,3279.4,1.4075037]
[1738248948916,0.7588,3281.7,3280.2,4.71952151]
[1738248949212,0.7588,3281.7,3280.8,3.04795]
[1738248949525,0.015,3281.6,3281.0,3.04785]
[1738248949882,0.0075,3281.6,3281.0,3.04785]
[1738248950240,0.7588,3281.7,3281.4,3.04741]
[1738248950510,0.7588,3281.7,3281.2,3.04764]
[1738248950709,0.7588,3281.7,3281.0,3.04782]
[1738248951124,0.7588,3281.7,3281.2,3.04765]
[1738248951326,0.7588,3281.7,3281.6,3.04729]
[1738248952584,0.7588,3281.7,3281.3,0.62314629]
[1738248953174,0.7845,3282.5,3281.4,0.030474]
[1738248953371,0.7845,3282.5,3282.2,3.04673]
[1738248954321,0.7845,3282.5,3282.2,3.04664]
[1738248954548,0.7845,3282.5,3282.0,3.04691]
[1738248954717,0.7845,3282.5,3282.1,3.04678]
[1738248954883,0.7845,3282.5,3282.0,3.04691]
[1738248955210,0.7845,3282.5,3281.6,0.7577]
[1738248955211,0.8079,3283.0,3282.3,3.4248066]
[1738248955395,0.1671596,3283.1,3282.9,3.04608]
[1738248955576,0.1671596,3283.1,3283.0,3.04599]
[1738248956978,100.0,3284.0,3283.7,3.04534]
[1738248957177,100.0,3284.0,3283.7,6.4701466]
[1738248957399,100.0,3284.0,3283.5,3.04545]
[1738248957603,100.0,3284.0,3283.0,3.8789]
[1738248957604,100.0,3284.0,3283.7,6.4701466]
[1738248959020,100.0,3284.0,3283.7,3.04534]
[1738248959395,1.57683382,3283.8,3283.5,3.04548]
[1738248959632,1.57683382,3283.8,3283.4,3.64938772]
[1738248960218,1.57683382,3283.8,3283.5,3.04544]
[1738248960444,1.57683382,3283.8,3283.4,0.60377772]
[1738248960643,2.32683382,3283.8,3283.4,0.60377772]
[1738248960868,0.23268338,3283.7,3283.4,0.60377772]
[1738248961036,0.0075,3283.6,3283.4,0.60377772]
[1738248961464,1.57683382,3283.8,3283.4,0.60377772]
[1738248961821,0.015,3283.7,3282.9,3.4248066]
[1738248962026,0.7516,3283.6,3282.5,6.4711766]
[1738248962385,0.015,3283.5,3282.5,3.04637]
[1738248962524,0.015,3283.5,3282.6,3.04635]
[1738248962964,0.015,3283.5,3282.7,3.04626]
[1738248963144,0.015,3283.5,3282.5,3.4248066]
[1738248963356,0.015,3283.5,3282.7,3.04627]
[1738248963668,3.8302,3283.4,3282.3,0.60649656]
[1738248963882,0.8302,3283.2,3282.3,0.60649656]
[1738248964170,0.015,3283.1,3282.3,0.60649656]
[1738248964377,0.015,3282.9,3282.3,0.60649656]
[1738248964540,0.0075,3282.5,3281.5,3.04733]
[1738248964740,3.0,3282.5,3281.3,0.624358]
[1738248964956,0.806,3281.8,3280.6,3.65700402]
[1738248965163,0.267,3281.7,3280.6,3.04813]
[1738248965328,0.7733,3281.6,3280.3,3.04844]
[1738248965525,0.015,3281.2,3280.1,3.04868]
[1738248965725,0.015,3281.2,3280.0,0.60302181]
[1738248965980,0.267,3281.2,3280.1,3.04866]
[1738248966188,0.267,3281.2,3280.2,3.04853]
[1738248966330,0.015,3281.0,3279.8,3.04889]
[1738248966528,0.015,3281.0,3278.6,3.04999]
[1738248966529,0.0075,3280.8,3279.9,3.04885]
[1738248966728,1.0149,3280.9,3280.1,3.04864]
[1738248966932,0.7629,3280.9,3280.3,3.04847]
[1738248967229,0.7629,3280.9,3280.2,3.04858]
[1738248967542,0.0075,3280.8,3280.2,3.04854]
[1738248968134,0.015,3280.8,3280.0,3.66959051]
[1738248968335,0.015,3280.8,3279.6,3.04914]
[1738248968574,0.0075,3280.6,3279.6,3.04912]
[1738248968962,0.0075,3280.6,3279.7,3.04898]
[1738248969161,0.015,3280.8,3279.7,3.04898]
[1738248969363,3.0,3280.7,3279.5,3.04924]
[1738248969546,3.84238,3280.7,3279.4,3.65698243]
[1738248969748,0.015,3280.5,3279.4,0.60770243]
[1738248969987,0.8112,3280.2,3279.1,6.0992]
[1738248970134,0.8112,3280.2,3279.3,3.04941]
[1738248970459,0.015,3280.1,3279.1,3.0496]
[1738248970861,0.8112,3280.2,3278.8,0.60526186]
[1738248971064,0.015,3280.1,3278.8,0.60526186]
[1738248971381,0.015,3280.1,3279.1,3.04959]
[1738248971685,0.015,3280.1,3278.4,3.96130732]
[1738248971864,0.015,3280.1,3279.0,3.04968]
[1738248972173,3.61387,3279.9,3278.7,0.60776345]
[1738248972477,0.015,3279.7,3278.7,0.60776345]
[1738248972648,0.251,3279.6,3278.9,3.04972]
[1738248972856,0.251,3279.6,3279.0,3.04966]
[1738248973059,0.015,3279.5,3278.7,0.60776345]
[1738248973379,0.015,3279.5,3278.7,3.65772345]
[1738248973761,0.015,3279.5,3278.7,0.60776345]
[1738248974075,0.8201,3279.8,3278.5,0.03050053]
[1738248974252,0.8201,3279.8,3279.6,3.04913]
[1738248974451,0.8285,3280.2,3280.0,3.04877]
[1738248974648,0.251,3280.9,3279.7,3.04897]
[1738248974649,0.8285,3280.6,3279.7,3.04897]
[1738248974976,0.8285,3280.6,3278.9,4.76640732]
[1738248974977,0.015,3280.3,3279.1,3.04961]
[1738248975145,0.015,3280.3,3279.5,3.04916]
[1738248975333,0.015,3280.3,3279.5,3.04924]
[1738248975533,0.8326,3280.4,3279.1,0.60145051]
[1738248975534,0.8221,3280.2,3279.1,0.60145051]
[1738248976283,0.8221,3280.2,3279.8,3.04894]
[1738248976490,0.8221,3280.2,3279.9,3.04883]
[1738248976834,0.015,3280.7,3279.4,3.96130732]
[1738248976835,0.8221,3280.7,3279.4,3.96130732]
[1738248977069,0.8221,3280.7,3280.4,3.04835]
[1738248977271,0.8221,3280.7,3280.2,3.04858]
[1738248977670,0.8221,3280.7,3280.1,3.04868]
[1738248977877,0.8221,3280.7,3280.4,3.04839]
[1738248978448,0.8221,3280.7,3279.7,0.62312275]
[1738248978449,0.015,3280.6,3279.7,0.62312275]
[1738248978651,0.015,3280.6,3280.0,3.0487]
[1738248978862,0.015,3280.6,3280.1,3.04864]
[1738248979045,0.8221,3280.7,3279.6,3.04913]
[1738248979247,0.8221,3280.7,3280.2,3.04857]
[1738248979447,0.015,3280.6,3279.9,3.04882]
[1738248979751,0.015,3280.6,3279.5,0.61152352]
[1738248979752,0.015,3280.6,3279.8,3.04896]
[1738248979973,0.015,3280.6,3280.1,3.04867]
[1738248980179,0.015,3280.6,3280.3,3.0485]
[1738248980373,0.8221,3280.7,3280.5,3.04823]
[1738248980559,0.8221,3280.7,3280.4,3.04839]
[1738248980891,0.7963,3282.0,3280.4,3.0484]
[1738248981100,0.015,3281.6,3280.4,0.6213879]
[1738248981390,0.015,3281.6,3281.3,3.0475]
[1738248981391,0.0075,3281.6,3281.3,3.0475]
[1738248981764,0.015,3281.8,3281.3,3.0475]
[1738248982118,0.015,3281.8,3281.2,3.04764]
[1738248982290,0.015,3281.8,3280.5,0.03047685]
[1738248982450,3.04601,3283.0,3281.9,3.04701]
[1738248982650,3.04552,3283.6,3281.3,0.03047035]
[1738248982850,0.304552,3283.5,3282.4,3.04654]
[1738248983185,0.304552,3283.5,3281.5,3.95763671]
[1738248983186,0.25,3283.4,3282.3,3.04661]
[1738248983391,0.0075,3283.3,3282.3,3.04661]
[1738248983591,0.015,3283.3,3282.3,3.04661]
[1738248983788,0.015,3283.3,3281.8,3.64559339]
[1738248983789,0.25,3283.2,3282.7,3.04625]
[1738248984090,0.22074673,3283.8,3281.8,0.59856339]
[1738248984091,0.25,3283.6,3282.8,3.04609]
[1738248984291,0.25,3283.6,3282.1,3.07720225]
[1738248984292,0.25,3283.6,3283.1,3.04588]
[1738248984475,0.015,3283.7,3282.8,3.04611]
[1738248984681,0.015,3283.7,3282.9,3.04602]
[1738248985756,0.015,3283.5,3283.0,3.04597]
[1738248985982,0.8067,3283.6,3283.0,3.04597]
[1738248986193,0.0075,3283.5,3282.8,3.04611]
[1738248986391,0.0075,3283.5,3282.9,3.04607]
[1738248986599,0.0075,3283.5,3282.6,3.04634]
[1738248987120,0.015,3283.5,3282.6,3.04634]
[1738248987343,0.015,3283.5,3282.6,3.04632]
[1738248987988,0.015,3283.5,3282.4,3.04655]
[1738248988206,0.015,3283.5,3282.2,3.04673]
[1738248988207,0.263,3283.5,3282.7,3.04618]
[1738248988882,0.263,3283.5,3282.6,3.04636]
[1738248989383,0.263,3283.5,3282.5,3.04644]
[1738248989673,0.263,3283.5,3281.9,0.7839]
[1738248989674,3.0,3283.2,3281.9,0.7839]
[1738248989791,0.785,3283.0,3281.2,0.62479799]
[1738248989991,0.8,3282.0,3281.2,0.62479799]
[1738248990223,0.0075,3281.8,3281.2,0.62479799]
[1738248990721,0.7883,3281.7,3280.7,3.04812]
[1738248990926,0.015,3281.6,3280.8,3.048]
[1738248991126,0.015,3281.6,3280.7,3.04808]
[1738248991308,0.015,3281.4,3280.7,3.04812]
[1738248991699,0.015,3281.4,3281.0,3.0478]
[1738248991901,0.7883,3281.5,3280.2,0.62479799]
[1738248992246,0.7883,3281.5,3281.4,3.04747]
[1738248992553,0.249,3281.8,3281.4,3.04739]
[1738248992697,0.8064,3282.7,3281.9,3.04694]
[1738248992897,0.8064,3282.7,3281.1,3.04775]
[1738248993128,0.8064,3282.7,3281.5,0.64063285]
[1738248993333,0.8064,3282.7,3282.5,3.04645]
[1738248994043,0.8064,3282.7,3282.3,3.04663]
[1738248994408,0.8064,3282.7,3282.4,3.04648]
[1738248994800,0.7649,3283.3,3282.7,3.04626]
[1738248995720,0.0075,3283.2,3282.9,3.04603]
[1738248996047,0.7649,3283.3,3283.0,3.04598]
[1738248996258,0.015,3283.2,3282.5,3.04637]
[1738248996406,0.015,3283.2,3282.5,3.04636]
[1738248996740,0.015,3283.2,3282.6,3.04634]
[1738248996951,0.015,3283.2,3282.5,3.04636]
[1738248996952,0.0075,3283.2,3282.7,3.04625]
[1738248997372,0.7649,3283.3,3282.8,3.04617]
[1738248997516,0.7649,3283.3,3282.2,3.04673]
[1738248997517,0.247,3283.1,3282.2,3.04673]
[1738248997718,0.652768,3283.1,3281.7,0.8125]
[1738248998049,0.405768,3283.1,3281.7,0.8125]
[1738248998228,1.0129,3283.3,3282.4,3.04648]
[1738248998444,0.7649,3283.3,3283.0,3.04598]
[1738248998646,0.7649,3283.3,3283.2,3.0458]
[1738248998831,0.7649,3283.3,3282.5,3.04645]
[1738248998832,0.7649,3283.3,3283.1,3.04589]
[1738248999051,0.7649,3283.3,3283.0,3.04597]
[1738249000060,0.7649,3283.3,3283.1,3.04586]
[1738249000243,0.22074673,3283.8,3283.3,3.0457]
[1738249000568,0.0075,3283.7,3283.3,3.04565]
[1738249000782,0.22074673,3283.8,3283.3,3.04565]
[1738249001286,0.22074673,3283.8,3283.5,3.04552]
[1738249001757,0.22074673,3283.8,3283.3,3.04568]
[1738249002181,0.22074673,3283.8,3283.4,3.04555]
[1738249002320,3.35073515,3283.8,3283.2,3.0458]
[1738249002669,3.35073515,3283.8,3283.0,3.04599]
[1738249002670,0.015,3283.7,3283.0,3.04599]
[1738249002818,0.015,3283.7,3283.1,0.6250705]
[1738249003022,3.35073515,3283.8,3283.1,0.6250705]
[1738249003023,0.7531,3283.6,3283.1,0.6250705]
[1738249003259,0.7531,3283.6,3282.9,3.04607]
[1738249003471,0.015,3283.5,3282.8,3.04616]
[1738249003617,0.015,3283.5,3282.6,0.59683561]
[1738249003821,0.7531,3283.6,3282.6,0.59683561]
[1738249004031,0.7531,3283.6,3282.9,3.04602]
[1738249004236,0.7531,3283.6,3283.1,3.04582]
[1738249004551,0.7531,3283.6,3283.3,3.04566]
[1738249004820,1.16348352,3283.6,3283.3,3.04566]
[1738249004963,0.015,3283.5,3283.0,3.04599]
[1738249005163,0.015,3283.5,3282.7,3.04625]
[1738249005363,0.015,3283.5,3282.8,3.04617]
[1738249005567,0.015,3283.5,3282.6,3.04635]
[1738249005767,0.015,3283.5,3282.7,3.04625]
[1738249005937,0.015,3283.5,3282.8,3.04612]
[1738249006572,3.015,3283.5,3282.1,0.7527]
[1738249006732,3.015,3283.5,3280.8,0.1]
[1738249006733,0.015,3282.9,3280.8,3.95763671]
[1738249007077,0.41784835,3283.4,3282.2,3.04669]
[1738249007078,1.0478,3282.8,3282.2,3.04669]
[1738249007929,0.0075,3282.7,3282.2,3.04669]
[1738249008543,0.8018,3282.8,3282.4,3.04653]
[1738249008749,0.8018,3282.8,3282.5,3.04643]
[1738249008950,0.8018,3282.8,3282.7,3.04627]
[1738249009479,0.8018,3282.8,3282.6,3.04628]
[1738249009685,0.8018,3282.8,3282.6,3.04636]
[1738249009864,0.8018,3282.8,3282.3,3.0466]
[1738249010379,0.8018,3282.8,3282.2,3.04672]
[1738249010682,0.8018,3282.8,3282.3,3.04661]
[1738249011153,0.8018,3282.8,3282.1,3.04674]
[1738249011350,0.8018,3282.8,3282.6,3.04635]
[1738249011551,0.8271,3283.2,3281.8,7.89476639]
[1738249011889,0.8271,3283.2,3282.6,3.04635]
[1738249012042,0.8271,3283.2,3282.7,3.04624]
[1738249012242,0.8271,3283.2,3282.9,3.04608]
[1738249012468,0.8271,3283.2,3282.8,3.04613]
[1738249013054,0.8271,3283.2,3282.5,3.04644]
[1738249013055,0.015,3283.1,3282.5,3.04644]
[1738249013484,0.015,3283.1,3282.0,3.0469]
[1738249013683,0.015,3282.9,3282.1,3.04682]
[1738249013851,0.015,3282.9,3282.3,3.04658]
[1738249014051,0.0075,3282.9,3282.1,3.04675]
[1738249014381,0.7713,3282.8,3281.8,3.04704]
[1738249014537,0.0075,3282.7,3281.8,3.64305376]
[1738249014740,0.0075,3282.7,3282.1,3.04673]
[1738249015134,0.0075,3282.7,3282.2,3.04667]
[1738249015338,0.0075,3282.7,3282.0,6.0937]
[1738249015580,0.0075,3282.7,3282.0,3.04684]
[1738249015785,0.0075,3282.7,3282.1,3.04682]
[1738249015984,0.015,3282.7,3282.2,3.0467]
[1738249016541,0.015,3282.7,3282.3,3.04661]
[1738249016740,0.015,3282.7,3282.1,3.04677]
[1738249017252,0.015,3282.7,3282.1,3.04682]
[1738249017790,0.015,3282.7,3281.8,0.59601376]
[1738249018080,0.015,3282.5,3281.8,0.59601376]
[1738249018482,0.0075,3282.2,3281.3,3.04756]
[1738249018789,0.015,3282.1,3281.3,3.04755]
[1738249018987,0.015,3282.1,3281.6,3.04726]
[1738249019187,0.015,3282.1,3281.4,6.09486]
[1738249019348,0.015,3282.1,3281.4,3.04741]
[1738249019843,0.015,3282.1,3281.6,3.04725]
[1738249020281,0.015,3282.1,3281.4,3.04741]
[1738249020490,0.015,3282.1,3281.5,3.04737]
[1738249020791,0.015,3282.1,3281.6,3.04727]
[1738249021088,0.015,3282.1,3281.8,3.04709]
[1738249021247,0.7733,3282.2,3281.4,3.04747]
[1738249021442,0.7733,3282.2,3282.0,3.0469]
[1738249021753,0.7883,3282.2,3281.8,3.0471]
[1738249021995,0.7883,3282.2,3281.9,3.04695]